fUST/lending_fUST_20250724
["ID","MTS","AMOUNT","RATE_DAILY","PERIOD"]
[374564306,1753356640957,-460.0,0.0002,2]
[374564308,1753356640966,-460.0,0.0002,2]
[374564310,1753356640975,-460.0,0.0002,2]
[374564312,1753356640985,-460.0,0.0002,2]
[374564314,1753356640995,-460.0,0.0002,2]
[374564316,1753356641004,-460.0,0.0002,2]
[374564318,1753356641013,-460.0,0.0002,2]
[374564320,1753356641023,-460.0,0.0002,2]
[374564322,1753356641032,-460.0,0.0002,2]
[374564324,1753356641042,-460.0,0.0002,2]
[374564326,1753356641053,-460.0,0.0002,2]
[374564328,1753356641062,-460.0,0.0002,2]
[374564330,1753356641073,-460.0,0.0002,2]
[374564331,1753356641083,-1469.24,0.0002,2]
[374564334,1753356641096,-2300.77,0.0002,2]
[374564336,1753356641106,-460.0,0.0002,2]
[374564338,1753356641115,-765.6,0.0002,2]
[374564340,1753356641127,-517.75,0.0002,2]
[374564342,1753356641137,-161.76201462,0.0002,2]
[374564344,1753356641146,-460.0,0.0002,2]
[374564346,1753356641155,-460.0,0.0002,2]
[374564348,1753356641165,-460.0,0.0002,2]
[374564350,1753356641174,-334.4332299,0.0002,2]
[374564352,1753356641183,-460.0,0.0002,2]
[374564354,1753356641193,-460.0,0.0002,2]
[374564355,1753356641202,-460.0,0.0002,2]
[374564357,1753356641211,-460.0,0.0002,2]
[374564359,1753356641220,-460.0,0.0002,2]
[374564361,1753356641229,-460.0,0.0002,2]
[374564363,1753356641238,-460.0,0.0002,2]
[374564365,1753356641247,-460.0,0.0002,2]
[374564367,1753356641257,-30676.34952064,0.0002,2]
[374564369,1753356641267,-803.26,0.0002,2]
[374564371,1753356641276,-672.81,0.0002,2]
[374564373,1753356641286,-460.0,0.0002,2]
[374564375,1753356641295,-460.0,0.0002,2]
[374564377,1753356641305,-460.0,0.0002,2]
[374564379,1753356641314,-392.70825012,0.0002,2]
[374564381,1753356641323,-460.0,0.0002,2]
[374564383,1753356641334,-460.0,0.0002,2]
[374564385,1753356641344,-460.0,0.0002,2]
[374564387,1753356641353,-460.0,0.0002,2]
[374564389,1753356641362,-460.0,0.0002,2]
[374564390,1753356641373,-1616.65,0.0002,2]
[374564391,1753356641384,-460.0,0.0002,2]
[374564393,1753356641394,-460.0,0.0002,2]
[374564395,1753356641404,-460.0,0.0002,2]
[374564396,1753356641413,-460.0,0.0002,2]
[374564397,1753356641423,-1142.33,0.0002,2]
[374564399,1753356641433,-1186.22,0.0002,2]
[374564400,1753356641443,-460.0,0.0002,2]
[374564401,1753356641452,-460.0,0.0002,2]
[374564402,1753356641461,-460.0,0.0002,2]
[374564403,1753356641471,-460.0,0.0002,2]
[374564404,1753356641481,-919.92190239,0.00020103,2]
[374564405,1753356641490,-460.0,0.00020273,2]
[374564406,1753356641500,-460.0,0.00020273,2]
[374564407,1753356641510,-526.64666517,0.00020273,2]
[374564408,1753356641519,-220.0,0.00020273,2]
[374564409,1753356641530,-460.0,0.00020273,2]
[374564410,1753356641540,-460.0,0.00020273,2]
[374564411,1753356641550,-460.0,0.00020273,2]
[374564412,1753356641559,-151.80139244,0.00020273,2]
[374564413,1753356641568,-460.0,0.00020273,2]
[374564414,1753356641577,-468.27109333,0.00020273,2]
[374564415,1753356641587,-460.0,0.00020273,2]
[374564416,1753356641597,-460.0,0.00020273,2]
[374564417,1753356641606,-460.0,0.00020273,2]
[374564418,1753356641617,-721.91,0.00020273,2]
[374564419,1753356641629,-460.0,0.00020273,2]
[374564420,1753356641639,-460.0,0.00020273,2]
[374564421,1753356641650,-460.0,0.00020273,2]
[374564422,1753356641659,-460.0,0.00020273,2]
[374564423,1753356641669,-460.0,0.00020273,2]
[374564424,1753356641678,-460.0,0.00020273,2]
[374564425,1753356641688,-460.0,0.00020273,2]
[374564426,1753356641697,-460.0,0.00020273,2]
[374564427,1753356641706,-188.97474229,0.00020273,2]
[374564429,1753356641715,-460.0,0.00020273,2]
[374564430,1753356641727,-460.0,0.00020273,2]
[374564431,1753356641737,-460.0,0.00020273,2]
[374564432,1753356641748,-1469.24,0.00020273,2]
[374564433,1753356641758,-460.0,0.00020273,2]
[374564434,1753356641768,-2300.77,0.00020273,2]
[374564435,1753356641778,-480.6889228,0.00020273,2]
[374564436,1753356641787,-765.6,0.00020273,2]
[374564437,1753356641797,-517.75,0.00020273,2]
[374564438,1753356641807,-460.0,0.00020273,2]
[374564439,1753356641817,-460.0,0.00020273,2]
[374564440,1753356641826,-460.0,0.00020273,2]
[374564441,1753356641836,-460.0,0.00020273,2]
[374564442,1753356641845,-460.0,0.00020273,2]
[374564443,1753356641855,-460.0,0.00020273,2]
[374564444,1753356641865,-460.0,0.00020273,2]
[374564445,1753356641876,-460.0,0.00020273,2]
[374564446,1753356641885,-460.0,0.00020273,2]
[374564447,1753356641895,-803.26,0.00020273,2]
[374564448,1753356641904,-672.81,0.00020273,2]
[374564449,1753356641912,-339.82700932,0.00020273,2]
[374564450,1753356641921,-460.0,0.00020273,2]
[374564451,1753356641937,-460.0,0.00020273,2]
[374564452,1753356641947,-460.0,0.00020273,2]
[374564453,1753356641959,-460.0,0.00020273,2]
[374564454,1753356641969,-460.0,0.00020273,2]
[374564455,1753356641977,-460.0,0.00020273,2]
[374564457,1753356641987,-460.0,0.00020273,2]
[374564459,1753356641996,-1616.65,0.00020273,2]
[374564461,1753356642007,-460.0,0.00020273,2]
[374564463,1753356642016,-460.0,0.00020273,2]
[374564465,1753356642026,-460.0,0.00020273,2]
[374564466,1753356642035,-460.0,0.00020273,2]
[374564467,1753356642045,-575.78,0.00020273,2]
[374564468,1753356642054,-1142.33,0.00020273,2]
[374564469,1753356642063,-1186.22,0.00020273,2]
[374564471,1753356642074,-460.0,0.00020273,2]
[374564472,1753356642083,-460.0,0.00020273,2]
[374564473,1753356642097,-460.0,0.00020273,2]
[374564474,1753356642106,-160.0,0.00020461,2]
[374564475,1753356642116,-460.0,0.00020547,2]
[374564476,1753356642126,-460.0,0.00020547,2]
[374564477,1753356642137,-460.0,0.00020547,2]
[374564478,1753356642147,-460.0,0.00020547,2]
[374564479,1753356642156,-721.91,0.00020547,2]
[374564480,1753356642166,-460.0,0.00020547,2]
[374564481,1753356642176,-555.8,0.00020547,2]
[374564482,1753356642189,-527.2,0.00020547,2]
[374564483,1753356642200,-460.0,0.00020547,2]
[374564484,1753356642212,-460.0,0.00020547,2]
[374564485,1753356642224,-225.17,0.00020547,2]
[374564486,1753356642236,-460.0,0.00020547,2]
[374564487,1753356642247,-460.0,0.00020547,2]
[374564488,1753356642259,-460.0,0.00020547,2]
[374564489,1753356642269,-1469.24,0.00020547,2]
[374564490,1753356642279,-460.0,0.00020547,2]
[374564491,1753356642290,-2300.77,0.00020547,2]
[374564492,1753356642303,-765.6,0.00020547,2]
[374564493,1753356642314,-517.75,0.00020547,2]
[374564494,1753356642326,-460.0,0.00020547,2]
[374564495,1753356642337,-460.0,0.00020547,2]
[374564496,1753356642349,-460.0,0.00020547,2]
[374564497,1753356642360,-460.0,0.00020547,2]
[374564498,1753356642374,-460.0,0.00020547,2]
[374564499,1753356642386,-326.52,0.00020547,2]
[374564500,1753356642397,-164.37,0.00020547,2]
[374564501,1753356642408,-460.0,0.00020547,2]
[374564502,1753356642420,-460.0,0.00020547,2]
[374564503,1753356642432,-803.26,0.00020547,2]
[374564504,1753356642445,-672.81,0.00020547,2]
[374564505,1753356642457,-376.40490601,0.00020547,2]
[374564506,1753356642468,-488.02,0.00020547,2]
[374564507,1753356642482,-460.0,0.00020547,2]
[374564508,1753356642493,-460.0,0.00020547,2]
[374564509,1753356642504,-460.0,0.00020547,2]
[374564510,1753356642516,-460.0,0.00020547,2]
[374564511,1753356642527,-460.0,0.00020547,2]
[374564512,1753356642539,-1616.65,0.00020547,2]
[374564513,1753356642550,-460.0,0.00020547,2]
[374564514,1753356642563,-554.96,0.00020547,2]
[374564515,1753356642575,-460.0,0.00020547,2]
[374564516,1753356642588,-460.0,0.00020547,2]
[374564517,1753356642599,-1186.22,0.00020547,2]
[374564518,1753356642611,-1142.33,0.00020547,2]
[374564519,1753356642623,-460.0,0.00020547,2]
[374564520,1753356642634,-460.0,0.00020547,2]
[374564521,1753356642645,-460.0,0.00020547,2]
[374564522,1753356642656,-12624.810388,0.00020616,2]
[374564523,1753356642669,-840.23756827,0.00020616,2]
[374564524,1753356642680,-160.0,0.00020616,2]
[374564525,1753356642691,-215.88777038,0.00020616,2]
[374564526,1753356642702,-476.79463412,0.00020616,2]
[374564527,1753356642713,-160.0,0.00020619,2]
[374564528,1753356642725,-311.69847291,0.00020654,2]
[374564529,1753356642736,-460.0,0.00020821,2]
[374564530,1753356642748,-460.0,0.00020821,2]
[374564531,1753356642759,-460.0,0.00020821,2]
[374564532,1753356642770,-721.91,0.00020821,2]
[374564534,1753356642783,-460.0,0.00020821,2]
[374564535,1753356642794,-460.0,0.00020821,2]
[374564536,1753356642806,-154.64,0.00020821,2]
[374564537,1753356642817,-460.0,0.00020821,2]
[374564538,1753356642829,-269.18,0.00020821,2]
[374564539,1753356642841,-460.0,0.00020821,2]
[374564540,1753356642853,-1469.24,0.00020821,2]
[374564541,1753356642863,-460.0,0.00020821,2]
[374564542,1753356642873,-2300.77,0.00020821,2]
[374564543,1753356642884,-765.6,0.00020821,2]
[374564545,1753356642895,-517.75,0.00020821,2]
[374564546,1753356642905,-460.0,0.00020821,2]
[374564547,1753356642915,-460.0,0.00020821,2]
[374564548,1753356642925,-460.0,0.00020821,2]
[374564549,1753356642936,-460.0,0.00020821,2]
[374564550,1753356642948,-460.0,0.00020821,2]
[374564551,1753356642959,-460.0,0.00020821,2]
[374564552,1753356642971,-803.26,0.00020821,2]
[374564553,1753356642982,-672.81,0.00020821,2]
[374564554,1753356642994,-460.0,0.00020821,2]
[374564555,1753356643004,-460.0,0.00020821,2]
[374564556,1753356643014,-460.0,0.00020821,2]
[374564557,1753356643024,-460.0,0.00020821,2]
[374564558,1753356643036,-1616.65,0.00020821,2]
[374564560,1753356643046,-460.0,0.00020821,2]
[374564562,1753356643057,-460.0,0.00020821,2]
[374564564,1753356643068,-460.0,0.00020821,2]
[374564565,1753356643080,-1186.22,0.00020821,2]
[374564566,1753356643093,-1142.33,0.00020821,2]
[374564567,1753356643105,-460.0,0.00020821,2]
[374564568,1753356643115,-460.0,0.00020821,2]
[374564570,1753356643127,-460.0,0.00020821,2]
[374564572,1753356643138,-500.0,0.00020867,2]
[374564573,1753356643149,-500.0,0.00020867,2]
[374564574,1753356643161,-500.0,0.00020867,2]
[374564575,1753356643172,-253.54490271,0.00020874,2]
[374564576,1753356643182,-608.449,0.00020881,2]
[374564577,1753356643192,-300.0,0.00020899,2]
[374564578,1753356643202,-420.0,0.00020899,2]
[374564579,1753356643212,-1230.22487247,0.000209,4]
[374564580,1753356643223,-741.14122082,0.00021,2]
[374564581,1753356643234,-1242.0,0.00021,2]
[374564582,1753356643245,-400.0,0.00021009,2]
[374564583,1753356643255,-500.0,0.00021064,2]
[374564584,1753356643265,-1230.22487227,0.00021072,4]
[374564585,1753356643276,-460.0,0.00021095,2]
[374564586,1753356643286,-460.0,0.00021095,2]
[374564587,1753356643297,-460.0,0.00021095,2]
[374564588,1753356643307,-721.91,0.00021095,2]
[374564589,1753356643317,-460.0,0.00021095,2]
[374564590,1753356643328,-460.0,0.00021095,2]
[374564591,1753356643339,-460.0,0.00021095,2]
[374564592,1753356643353,-460.0,0.00021095,2]
[374564593,1753356643364,-1469.24,0.00021095,2]
[374564594,1753356643376,-218.79,0.00021095,2]
[374564595,1753356643387,-2300.77,0.00021095,2]
[374564596,1753356643398,-765.6,0.00021095,2]
[374564597,1753356643408,-517.75,0.00021095,2]
[374564598,1753356643419,-460.0,0.00021095,2]
[374564599,1753356643430,-430.98426585,0.00021095,2]
[374564600,1753356643440,-460.0,0.00021095,2]
[374564601,1753356643453,-460.0,0.00021095,2]
[374564602,1753356643464,-460.0,0.00021095,2]
[374564603,1753356643475,-803.26,0.00021095,2]
[374564604,1753356643486,-672.81,0.00021095,2]
[374564605,1753356643497,-460.0,0.00021095,2]
[374564606,1753356643507,-460.0,0.00021095,2]
[374564607,1753356643518,-460.0,0.00021095,2]
[374564608,1753356643528,-460.0,0.00021095,2]
[374564609,1753356643539,-1616.65,0.00021095,2]
[374564610,1753356643551,-460.0,0.00021095,2]
[374564611,1753356643562,-464.34,0.00021095,2]
[374564612,1753356643573,-1186.22,0.00021095,2]
[374564613,1753356643584,-1142.33,0.00021095,2]
[374564614,1753356643594,-460.0,0.00021095,2]
[374564615,1753356643605,-460.0,0.00021095,2]
[374564616,1753356643616,-460.0,0.00021095,2]
[374564617,1753356643627,-173.9,0.00021126,4]
[374564618,1753356643639,-1230.22487227,0.00021245,4]
[374564619,1753356643650,-460.0,0.00021369,2]
[374564620,1753356643662,-460.0,0.00021369,2]
[374564621,1753356643673,-721.91,0.00021369,2]
[374564622,1753356643684,-460.0,0.00021369,2]
[374564623,1753356643695,-460.0,0.00021369,2]
[374564624,1753356643706,-460.0,0.00021369,2]
[374564625,1753356643718,-460.0,0.00021369,2]
[374564626,1753356643729,-1469.24,0.00021369,2]
[374564627,1753356643741,-2300.77,0.00021369,2]
[374564628,1753356643752,-765.6,0.00021369,2]
[374564629,1753356643764,-517.75,0.00021369,2]
[374564630,1753356643775,-460.0,0.00021369,2]
[374564631,1753356643786,-460.0,0.00021369,2]
[374564632,1753356643797,-460.0,0.00021369,2]
[374564633,1753356643807,-460.0,0.00021369,2]
[374564634,1753356643818,-803.26,0.00021369,2]
[374564635,1753356643829,-672.81,0.00021369,2]
[374564636,1753356643840,-460.0,0.00021369,2]
[374564637,1753356643850,-460.0,0.00021369,2]
[374564638,1753356643862,-460.0,0.00021369,2]
[374564639,1753356643874,-460.0,0.00021369,2]
[374564640,1753356643886,-1616.65,0.00021369,2]
[374564641,1753356643898,-290.1,0.00021369,2]
[374564642,1753356643910,-1186.22,0.00021369,2]
[374564643,1753356643921,-1142.33,0.00021369,2]
[374564644,1753356643932,-460.0,0.00021369,2]
[374564645,1753356643944,-460.0,0.00021369,2]
[374564646,1753356643955,-201.66,0.00021369,2]
[374564647,1753356643966,-1013.36135234,0.00021415,2]
[374564648,1753356643977,-1230.22487227,0.00021417,5]
[374564649,1753356643988,-173.9,0.00021469,4]
[374564650,1753356643999,-1230.22487227,0.0002159,5]
[374564651,1753356644010,-460.0,0.00021643,2]
[374564652,1753356644021,-414.94840566,0.00021643,2]
[374564653,1753356644031,-721.91,0.00021643,2]
[374564654,1753356644041,-460.0,0.00021643,2]
[374564655,1753356644052,-460.0,0.00021643,2]
[374564656,1753356644062,-460.0,0.00021643,2]
[374564657,1753356644073,-1469.24,0.00021643,2]
[374564658,1753356644083,-2300.77,0.00021643,2]
[374564659,1753356644096,-765.6,0.00021643,2]
[374564660,1753356644107,-517.75,0.00021643,2]
[374564661,1753356644118,-460.0,0.00021643,2]
[374564663,1753356644129,-460.0,0.00021643,2]
[374564664,1753356644139,-460.0,0.00021643,2]
[374564665,1753356644148,-460.0,0.00021643,2]
[374564666,1753356644157,-803.26,0.00021643,2]
[374564667,1753356644360,-672.81,0.00021643,2]
[374564668,1753356644370,-460.0,0.00021643,2]
[374564669,1753356644384,-460.0,0.00021643,2]
[374564670,1753356644394,-460.0,0.00021643,2]
[374564671,1753356644405,-1616.65,0.00021643,2]
[374564672,1753356644414,-1186.22,0.00021643,2]
[374564673,1753356644424,-1142.33,0.00021643,2]
[374564674,1753356644433,-165.36,0.00021643,2]
[374564675,1753356644443,-460.0,0.00021643,2]
[374564676,1753356644453,-877.72466876,0.00021739,2]
[374564677,1753356644463,-1230.22487227,0.00021762,5]
[374564678,1753356644472,-253.54490271,0.00021772,2]
[374564679,1753356644481,-173.9,0.00021812,5]
[374564680,1753356644491,-721.91,0.00021917,2]
[374564681,1753356644500,-460.0,0.00021917,2]
[374564682,1753356644510,-460.0,0.00021917,2]
[374564683,1753356644519,-398.10013579,0.00021917,2]
[374564684,1753356644529,-1469.24,0.00021917,2]
[374564685,1753356644539,-500.0,0.00021917,2]
[374564686,1753356644548,-486.79078975,0.00021917,2]
[374564687,1753356644557,-2300.77,0.00021917,2]
[374564688,1753356644567,-765.6,0.00021917,2]
[374564689,1753356644577,-517.75,0.00021917,2]
[374564690,1753356644586,-460.0,0.00021917,2]
[374564691,1753356644596,-460.0,0.00021917,2]
[374564692,1753356644605,-188.21,0.00021917,2]
[374564693,1753356644615,-460.0,0.00021917,2]
[374564694,1753356644626,-803.26,0.00021917,2]
[374564695,1753356644635,-672.81,0.00021917,2]
[374564696,1753356644645,-460.0,0.00021917,2]
[374564697,1753356644655,-460.0,0.00021917,2]
[374564698,1753356644665,-460.0,0.00021917,2]
[374564699,1753356644675,-1616.65,0.00021917,2]
[374564700,1753356644685,-1186.22,0.00021917,2]
[374564701,1753356644695,-1142.33,0.00021917,2]
[374564702,1753356644706,-460.0,0.00021917,2]
[374564703,1753356644716,-179.71133149,0.00021918,2]
[374564704,1753356644725,-1230.22487227,0.00021934,6]
[374564705,1753356644735,-311.69847291,0.00021955,2]
[374564706,1753356644744,-991.2,0.00022,7]
[374564707,1753356644753,-163.0,0.00022,2]
[374564708,1753356644763,-1154.62,0.00022,7]
[374564709,1753356644772,-178.0,0.00022,2]
[374564710,1753356644782,-169.0,0.00022,2]
[374564711,1753356644791,-163.0,0.00022,2]
[374564712,1753356644800,-25562.90966566,0.00022,2]
[374564713,1753356644895,-9562.93033434,0.00022,2]
[374564714,1753356644905,-3007.35833008,0.00022,2]
[374564715,1753356644915,-4538.87676424,0.00022,5]
[374564716,1753356644925,-166.67,0.00022,2]
[374564717,1753356644935,-1230.22487227,0.00022107,6]
[374564718,1753356644944,-173.9,0.00022155,5]
[374564719,1753356644954,-500.0,0.0002216,2]
[374564720,1753356644963,-721.91,0.00022191,2]
[374564721,1753356644974,-460.0,0.00022191,2]
[374564722,1753356644983,-460.0,0.00022191,2]
[374564723,1753356644992,-1469.24,0.00022191,2]
[374564724,1753356645002,-2300.77,0.00022191,2]
[374564725,1753356645012,-765.6,0.00022191,2]
[374564726,1753356645022,-517.75,0.00022191,2]
[374564727,1753356645031,-324.20055425,0.00022191,2]
[374564728,1753356645041,-460.0,0.00022191,2]
[374564729,1753356645051,-460.0,0.00022191,2]
[374564730,1753356645060,-803.26,0.00022191,2]
[374564731,1753356645069,-672.81,0.00022191,2]
[374564732,1753356645078,-460.0,0.00022191,2]
[374564733,1753356645088,-460.0,0.00022191,2]
[374564734,1753356645100,-460.0,0.00022191,2]
[374564735,1753356645110,-1616.65,0.00022191,2]
[374564736,1753356645119,-1186.22,0.00022191,2]
[374564737,1753356645131,-1142.33,0.00022191,2]
[374564738,1753356645141,-460.0,0.00022191,2]
[374564739,1753356645150,-1230.22487227,0.00022279,6]
[374564740,1753356645159,-161.8235083,0.00022322,2]
[374564741,1753356645169,-461.63188274,0.0002245,2]
[374564742,1753356645179,-1230.22487227,0.00022452,7]
[374564743,1753356645188,-721.91,0.00022465,2]
[374564744,1753356645197,-460.0,0.00022465,2]
[374564745,1753356645206,-460.0,0.00022465,2]
[374564746,1753356645215,-1469.24,0.00022465,2]
[374564747,1753356645224,-2300.77,0.00022465,2]
[374564748,1753356645233,-765.6,0.00022465,2]
[374564749,1753356645243,-517.75,0.00022465,2]
[374564750,1753356645252,-460.0,0.00022465,2]
[374564751,1753356645261,-460.0,0.00022465,2]
[374564752,1753356645271,-803.26,0.00022465,2]
[374564753,1753356645282,-672.81,0.00022465,2]
[374564754,1753356645292,-1808.58,0.00022465,2]
[374564755,1753356645301,-460.0,0.00022465,2]
[374564756,1753356645311,-460.0,0.00022465,2]
[374564757,1753356645321,-460.0,0.00022465,2]
[374564758,1753356645330,-1616.65,0.00022465,2]
[374564759,1753356645339,-1186.22,0.00022465,2]
[374564760,1753356645349,-1142.33,0.00022465,2]
[374564761,1753356645359,-460.0,0.00022465,2]
[374564762,1753356645368,-1336.23737566,0.0002249,7]
[374564763,1753356645382,-6823.55629151,0.0002249,7]
[374564764,1753356645393,-1238.74465607,0.0002249,7]
[374564765,1753356645404,-7320.692546,0.0002249,7]
[374564766,1753356645528,-174.31536871,0.00019178,2]
[374564767,1753356645537,-335.21269422,0.00019178,2]
[374564768,1753356645638,-57.67432585,0.00019178,2]
[374564769,1753356645651,-147.07566381,0.00019178,2]
[374564770,1753356645662,-460.0,0.00019178,2]
[374564772,1753356645672,-1142.25,0.00019178,2]
[374564773,1753356645681,-208.03148995,0.00019452,2]
[374564774,1753356645693,-251.96851005,0.00019452,2]
[374564775,1753356645703,-97.68695906,0.00019452,2]
[374564776,1753356645719,-611.88521869,0.00019452,2]
[374564777,1753356646227,-460.0,0.00019178,2]
[374564778,1753356646237,-432.67782225,0.00019452,2]
[374564779,1753356646247,-536.64,0.00019726,2]
[374564780,1753356646256,-1142.25,0.00019726,2]
[374564781,1753356646266,-1142.25,0.0002,2]
[374564782,1753356646275,-1142.25,0.00020273,2]
[374564783,1753356646284,-1142.25,0.00020547,2]
[374564784,1753356646319,-1142.25,0.00020821,2]
[374564785,1753356646329,-1142.25,0.00021095,2]
[374564786,1753356646339,-1097.02027227,0.0002249,7]
[374564787,1753356646350,-315.56071227,0.0002249,7]
[374564788,1753356646365,-11716.994,0.0002249,7]
[374564789,1753356646377,-6630.0315086,0.0002249,7]
[374564790,1753356646389,-4261.54353709,0.0002249,7]
[374564792,1753356646399,-845.61652906,0.0002249,7]
[374564794,1753356646410,-465.24704386,0.0002249,7]
[374564796,1753356646421,-371.73847282,0.0002249,7]
[374564812,1753356795652,159.372972,0.00013699,2]
[374564825,1753357536092,-302.66710251,0.000189,2]
[374564826,1753357536620,-169.80669432,0.00018978,2]
[374564827,1753357536643,-169.80669431,0.00019003,2]
[374564828,1753357536666,-169.80669431,0.00019028,2]
[374564829,1753357536689,-169.80669431,0.00019053,2]
[374564830,1753357536714,-287.30975637,0.00019078,2]
[374564831,1753357536738,-169.80669431,0.00019078,2]
[374564832,1753357536761,-267.7270428,0.00019089,2]
[374564834,1753357627115,-151.31957851,0.00019,3]
[374564835,1753357627136,-34.94005971,0.00019089,2]
[374564836,1753357627158,-578.75555056,0.00019177,2]
[374564837,1753357630088,-621.24444944,0.00019177,2]
[374564838,1753357630110,-300.0,0.00019177,2]
[374564839,1753357630132,-300.0,0.00019177,2]
[374564840,1753357630156,-233.97412278,0.00019177,2]
[374564841,1753357630179,-460.0,0.00019178,2]
[374564842,1753357630199,-462.36033899,0.00019178,2]
[374564843,1753357630219,-413.55814427,0.00019178,2]
[374564844,1753357648205,-48.75424005,0.00019178,2]
[374564845,1753357648229,-460.0,0.00019178,2]
[374564846,1753357648250,-337.5357576,0.00019178,2]
[374564847,1753357777381,-4022.27998485,0.00018656,2]
[374564893,1753357832456,-246.71492222,0.000189,2]
[374564895,1753357832466,-300.0,0.00019177,2]
[374564897,1753357832476,-182.0,0.00019177,2]
[374564899,1753357832487,-187.51517945,0.00019178,2]
[374564901,1753357832496,-462.83327977,0.00019178,2]
[374564903,1753357832506,-460.0,0.00019178,2]
[374564905,1753357832515,-460.0,0.00019178,2]
[374564907,1753357832525,-363.47691188,0.00019178,2]
[374564910,1753357832540,-204.97858895,0.00019178,2]
[374564912,1753357832551,-460.90290907,0.00019178,2]
[374564914,1753357832560,-460.0,0.00019178,2]
[374564916,1753357832570,-460.0,0.00019178,2]
[374564918,1753357832580,-320.14465619,0.00019178,2]
[374564920,1753357832592,-139.85534381,0.00019178,2]
[374564922,1753357832601,-503.45,0.00019178,2]
[374564924,1753357832612,-460.0,0.00019178,2]
[374564926,1753357832622,-220.011865,0.00019178,2]
[374564928,1753357832632,-151.0,0.00019178,2]
[374564930,1753357832642,-500.0,0.00019178,2]
[374564932,1753357832651,-151.0,0.00019178,2]
[374564934,1753357832661,-151.0,0.00019178,2]
[374564936,1753357832670,-151.0,0.00019178,2]
[374564938,1753357832681,-460.0,0.00019178,2]
[374564940,1753357832690,-217.77359527,0.00019178,2]
[374564943,1753357832702,-242.22640473,0.00019178,2]
[374564944,1753357832712,-460.0,0.00019178,2]
[374564946,1753357832721,-466.05615248,0.00019178,2]
[374564949,1753357832736,-460.0,0.00019178,2]
[374564951,1753357832745,-460.0,0.00019178,2]
[374564953,1753357832755,-442.4814034,0.00019178,2]
[374564955,1753357832764,-461.78887317,0.00019178,2]
[374564956,1753357832773,-460.0,0.00019178,2]
[374564958,1753357832783,-459.93381306,0.00019178,2]
[374564959,1753357832793,-380.99330358,0.00019178,2]
[374564960,1753357832803,-460.0,0.00019178,2]
[374564961,1753357832812,-460.0,0.00019178,2]
[374564962,1753357832822,-460.0,0.00019178,2]
[374564963,1753357832833,-460.0,0.00019178,2]
[374564964,1753357832843,-460.0,0.00019178,2]
[374564965,1753357832856,-460.0,0.00019178,2]
[374564966,1753357832867,-460.0,0.00019178,2]
[374564967,1753357832877,-460.0,0.00019178,2]
[374564968,1753357832886,-460.0,0.00019178,2]
[374564969,1753357832896,-460.0,0.00019178,2]
[374564970,1753357832906,-392.52004958,0.00019178,2]
[374564974,1753357838422,-67.47995042,0.00019178,2]
[374564975,1753357838432,-460.0,0.00019178,2]
[374564976,1753357838442,-460.0,0.00019178,2]
[374564977,1753357838453,-460.0,0.00019178,2]